[Event "Masterklassen 2025"]
[Site "Uppsala, Sweden"]
[Date "2025.07.06"]
[Round "9.9"]
[White "Willstedt, Lukas"]
[Black "Ask, Josef"]
[Result "1-0"]
[TimeControl "90 min for 40 move + 30 min with an increment of 30 sec starting move 1"]
[BlackTitle "FM"]
[WhiteFideId "1751913"]
[BlackFideId "1704583"]
[WhiteElo "2055"]
[BlackElo "2121"]

1. d4 {[%clk 01:30:58]} b6 {[%clk 01:30:30]} {[%emt 00:00:30]} 2. e4 {[%clk
01:30:27]} {[%emt 00:01:02]} Bb7 {[%clk 01:30:56]} {[%emt 00:00:05]} 3. Bd3
{[%clk 01:30:49]} {[%emt 00:00:07]} e6 {[%clk 01:31:21]} {[%emt 00:00:04]} 4.
Nf3 {[%clk 01:30:42]} {[%emt 00:00:36]} g6 {[%clk 01:28:03]} {[%emt 00:03:49]}
5. O-O {[%clk 01:28:07]} {[%emt 00:03:05]} Bg7 {[%clk 01:28:26]} {[%emt
00:00:08]} 6. c3 {[%clk 01:28:17]} {[%emt 00:00:20]} Ne7 {[%clk 01:28:25]}
{[%emt 00:00:31]} 7. Bg5 {[%clk 01:27:57]} {[%emt 00:00:49]} h6 {[%clk
01:28:33]} {[%emt 00:00:23]} 8. Bh4 {[%clk 01:28:04]} {[%emt 00:00:22]} g5
{[%clk 01:27:11]} {[%emt 00:01:53]} 9. Bg3 {[%clk 01:28:28]} {[%emt 00:00:06]}
O-O {[%clk 01:27:04]} {[%emt 00:00:36]} 10. e5 {[%clk 01:27:20]} {[%emt
00:01:39]} f5 {[%clk 01:20:11]} {[%emt 00:07:23]} 11. exf6 {[%clk 01:25:15]}
{[%emt 00:02:35]} Rxf6 {[%clk 01:15:47]} {[%emt 00:04:54]} 12. Nbd2 {[%clk
01:25:20]} {[%emt 00:00:24]} Nf5 {[%clk 01:11:14]} {[%emt 00:05:03]} 13. Be5
{[%clk 01:24:42]} {[%emt 00:01:09]} Rf7 {[%clk 01:11:02]} {[%emt 00:00:41]} 14.
Be4 {[%clk 01:22:38]} {[%emt 00:02:35]} Bxe4 {[%clk 01:09:56]} {[%emt
00:01:36]} 15. Nxe4 {[%clk 01:22:55]} {[%emt 00:00:12]} g4 {[%clk 01:09:15]}
{[%emt 00:01:12]} 16. Nfd2 {[%clk 01:22:01]} {[%emt 00:01:24]} h5 {[%clk
01:08:09]} {[%emt 00:01:36]} 17. Qe2 {[%clk 01:18:35]} {[%emt 00:03:54]} Nc6
{[%clk 01:05:24]} {[%emt 00:03:16]} 18. Bxg7 {[%clk 01:17:37]} {[%emt
00:01:28]} Rxg7 {[%clk 01:05:21]} {[%emt 00:00:34]} 19. f3 {[%clk 01:13:51]}
{[%emt 00:04:15]} Qe7 {[%clk 00:59:01]} {[%emt 00:06:51]} 20. fxg4 {[%clk
01:11:41]} {[%emt 00:02:40]} Rxg4 {[%clk 00:48:10]} {[%emt 00:11:21]} 21. h3
{[%clk 01:09:04]} {[%emt 00:03:06]} Rg6 {[%clk 00:44:52]} {[%emt 00:03:49]} 22.
d5 {[%clk 00:54:42]} {[%emt 00:14:52]} Ne5 {[%clk 00:43:39]} {[%emt 00:01:43]}
23. dxe6 {[%clk 00:53:55]} {[%emt 00:01:18]} dxe6 {[%clk 00:42:28]} {[%emt
00:01:40]} 24. Nf3 {[%clk 00:47:13]} {[%emt 00:07:12]} Qg7 {[%clk 00:40:11]}
{[%emt 00:02:47]} 25. Nxe5 {[%clk 00:31:48]} {[%emt 00:15:54]} Qxe5 {[%clk
00:40:37]} {[%emt 00:00:05]} 26. Rf2 {[%clk 00:31:48]} {[%emt 00:00:29]} Rd8
{[%clk 00:33:35]} {[%emt 00:07:33]} 27. Qxh5 {[%clk 00:26:33]} {[%emt
00:05:44]} Rg7 {[%clk 00:28:39]} {[%emt 00:05:27]} 28. Qe2 {[%clk 00:22:09]}
{[%emt 00:04:53]} Rdd7 {[%clk 00:25:35]} {[%emt 00:03:34]} 29. Re1 {[%clk
00:20:40]} {[%emt 00:01:59]} Rg6 {[%clk 00:24:57]} {[%emt 00:01:09]} 30. Nd2
{[%clk 00:15:57]} {[%emt 00:05:13]} Qg7 {[%clk 00:18:23]} {[%emt 00:07:04]} 31.
Nf3 {[%clk 00:15:12]} {[%emt 00:01:14]} Rd6 {[%clk 00:17:17]} {[%emt 00:01:37]}
32. Qe5 {[%clk 00:12:42]} {[%emt 00:02:59]} Qh6 {[%clk 00:16:27]} {[%emt
00:01:21]} 33. Kh2 {[%clk 00:12:53]} {[%emt 00:00:19]} Rd7 {[%clk 00:14:03]}
{[%emt 00:02:54]} 34. Nd4 {[%clk 00:09:50]} {[%emt 00:03:33]} Nxd4 {[%clk
00:11:36]} {[%emt 00:02:57]} 35. cxd4 {[%clk 00:10:18]} {[%emt 00:00:02]} Rdg7
{[%clk 00:11:05]} {[%emt 00:01:01]} 36. Ref1 {[%clk 00:08:35]} {[%emt
00:02:12]} Qh4 {[%clk 00:09:44]} {[%emt 00:01:52]} 37. d5 {[%clk 00:06:34]}
{[%emt 00:02:31]} exd5 {[%clk 00:09:50]} {[%emt 00:00:24]} 38. Qxd5+ {[%clk
00:07:02]} {[%emt 00:00:01]} Kh7 {[%clk 00:10:12]} {[%emt 00:00:09]} 39. Rf7
{[%clk 00:06:05]} {[%emt 00:01:27]} Qg3+ {[%clk 00:08:57]} {[%emt 00:01:45]} 40.
Kh1 {[%clk 00:06:18]} {[%emt 00:00:16]} Qxg2+ {[%clk 00:07:30]} {[%emt
00:01:58]} 41. Qxg2 {[%clk 00:06:20]} {[%emt 00:00:28]} Rxg2 {[%clk 00:07:52]}
{[%emt 00:00:07]} 42. Rxg7+ {[%clk 00:06:00]} {[%emt 00:00:50]} Rxg7 {[%clk
00:07:35]} {[%emt 00:00:48]} 43. Kh2 {[%clk 00:04:46]} {[%emt 00:01:44]} Rd7
{[%clk 00:07:37]} {[%emt 00:00:27]} 44. Rf2 {[%clk 00:04:33]} {[%emt 00:00:43]}
Kg6 {[%clk 00:07:46]} {[%emt 00:00:21]} 45. Kg3 {[%clk 00:03:59]} {[%emt
00:01:04]} c5 {[%clk 00:06:53]} {[%emt 00:01:24]} 46. h4 {[%clk 00:01:53]}
{[%emt 00:02:36]} Rd3+ {[%clk 00:28:10]} {[%emt 00:09:12]} 47. Kg4 {[%clk
00:32:11]} {[%emt 00:00:12]} Rd4+ {[%clk 00:28:16]} {[%emt 00:00:24]} 48. Kg3
{[%clk 00:31:44]} {[%emt 00:00:56]} c4 {[%clk 00:26:32]} {[%emt 00:02:16]} 49.
Re2 {[%clk 00:28:12]} {[%emt 00:04:01]} Kf5 {[%clk 00:20:40]} {[%emt 00:06:22]}
50. Rf2+ {[%clk 00:27:58]} {[%emt 00:00:45]} Kg6 {[%clk 00:17:09]} {[%emt
00:04:01]} 51. Re2 {[%clk 00:27:43]} {[%emt 00:00:44]} Rd3+ {[%clk 00:17:20]}
{[%emt 00:00:19]} 52. Kg4 {[%clk 00:28:00]} {[%emt 00:00:12]} Rd4+ {[%clk
00:17:07]} {[%emt 00:00:44]} 53. Kg3 {[%clk 00:27:33]} {[%emt 00:00:57]} Kf5
{[%clk 00:17:11]} {[%emt 00:00:27]} 54. Rf2+ {[%clk 00:27:38]} {[%emt
00:00:24]} Ke5 {[%clk 00:17:22]} {[%emt 00:00:20]} 55. h5 {[%clk 00:27:55]}
{[%emt 00:00:12]} Rd1 {[%clk 00:16:47]} {[%emt 00:01:05]} 56. Rh2 {[%clk
00:26:03]} {[%emt 00:02:21]} Rg1+ {[%clk 00:15:15]} {[%emt 00:02:04]} 57. Kf3
{[%clk 00:25:38]} {[%emt 00:00:55]} Rg7 {[%clk 00:13:23]} {[%emt 00:02:22]} 58.
Ke3 {[%clk 00:25:38]} {[%emt 00:00:29]} Rg3+ {[%clk 00:11:06]} {[%emt
00:02:47]} 59. Kd2 {[%clk 00:25:46]} {[%emt 00:00:21]} Rd3+ {[%clk 00:08:55]}
{[%emt 00:02:42]} 60. Kc2 {[%clk 00:25:48]} {[%emt 00:00:28]} Rd8 {[%clk
00:08:50]} {[%emt 00:00:35]} 61. h6 {[%clk 00:25:33]} {[%emt 00:00:46]} Rh8
{[%clk 00:08:47]} {[%emt 00:00:33]} 62. Kc3 {[%clk 00:25:46]} {[%emt 00:00:16]}
b5 {[%clk 00:06:15]} {[%emt 00:03:02]} 63. Rh5+ {[%clk 00:25:02]} {[%emt
00:01:14]} Ke4 {[%clk 00:06:39]} {[%emt 00:00:07]} 64. Rxb5 {[%clk 00:24:37]}
{[%emt 00:00:54]} Rxh6 {[%clk 00:07:02]} {[%emt 00:00:07]} 65. Kxc4 {[%clk
00:25:00]} {[%emt 00:00:07]} Rc6+ {[%clk 00:06:43]} {[%emt 00:00:49]} 66. Rc5
{[%clk 00:24:41]} {[%emt 00:00:49]} Ra6 {[%clk 00:06:41]} {[%emt 00:00:33]} 67.
a3 {[%clk 00:24:55]} {[%emt 00:00:15]} Ke3 {[%clk 00:06:18]} {[%emt 00:00:54]}
68. Rd5 {[%clk 00:24:36]} {[%emt 00:00:48]} Ke2 {[%clk 00:05:08]} {[%emt
00:01:40]} 69. Kb3 {[%clk 00:24:52]} {[%emt 00:00:15]} Rb6+ {[%clk 00:05:25]}
{[%emt 00:00:13]} 70. Ka2 {[%clk 00:25:12]} {[%emt 00:00:09]} Ke3 {[%clk
00:05:17]} {[%emt 00:00:39]} 71. b4 {[%clk 00:25:35]} {[%emt 00:00:07]} a6
{[%clk 00:05:22]} {[%emt 00:00:24]} 72. Kb3 {[%clk 00:24:29]} {[%emt 00:01:36]}
Ke4 {[%clk 00:05:13]} {[%emt 00:00:40]} 73. Kc4 {[%clk 00:24:49]} {[%emt
00:00:10]} Rc6+ {[%clk 00:04:56]} {[%emt 00:00:47]} 74. Rc5 {[%clk 00:25:17]}
{[%emt 00:00:01]} Rd6 {[%clk 00:05:10]} {[%emt 00:00:16]} 75. Kb3 {[%clk
00:24:35]} {[%emt 00:01:12]} Rh6 {[%clk 00:04:38]} {[%emt 00:01:02]} 76. Ka4
{[%clk 00:24:54]} {[%emt 00:00:11]} Kd4 {[%clk 00:04:13]} {[%emt 00:00:56]} 77.
Ka5 {[%clk 00:25:16]} {[%emt 00:00:08]} Rg6 {[%clk 00:02:33]} {[%emt 00:02:10]}
78. a4 {[%clk 00:25:21]} {[%emt 00:00:25]} Rf6 {[%emt 00:00:28]} 79. Rc8 {[%clk
00:25:43]} Kd3 {[%clk 00:01:55]} {[%emt 00:01:18]} 80. Ra8 {[%clk 00:25:55]}
{[%emt 00:00:17]} Kc4 {[%clk 00:01:36]} {[%emt 00:00:50]} 81. Rxa6 {[%clk
00:25:21]} {[%emt 00:01:05]} Rf5+ {[%clk 00:01:14]} {[%emt 00:00:51]} 82. b5
{[%clk 00:25:41]} {[%emt 00:00:10]} Kb3 {[%clk 00:01:34]} {[%emt 00:00:09]} 83.
Rh6 {[%clk 00:25:22]} {[%emt 00:00:49]} Rf4 {[%emt 00:00:50]} 84. Rh3+ {[%clk
00:25:30]} Kc4 {[%clk 00:02:04]} {[%emt 00:00:02]} 85. Ka6 {[%clk 00:25:11]}
{[%emt 00:00:49]} Kb4 {[%clk 00:00:50]} {[%emt 00:01:45]} 86. a5 {[%clk
00:24:44]} {[%emt 00:00:57]} Rf8 {[%clk 00:00:50]} {[%emt 00:00:29]} 87. b6
{[%clk 00:24:33]} {[%emt 00:00:42]} Ra8+ {[%clk 00:00:45]} {[%emt 00:00:35]} 88.
Kb7 {[%clk 00:24:56]} {[%emt 00:00:07]} Rxa5 {[%clk 00:01:12]} {[%emt
00:00:03]} 89. Rh4+ {[%clk 00:25:18]} {[%emt 00:00:08]} Kb3 {[%clk 00:01:03]}
{[%emt 00:00:39]} 90. Kc7 {[%clk 00:25:35]} {[%emt 00:00:12]} Rg5 {[%clk
00:00:36]} {[%emt 00:00:58]} 91. b7 {[%clk 00:25:55]} {[%emt 00:00:10]} Rg7+
{[%clk 00:01:00]} {[%emt 00:00:06]} 92. Kb6 {[%clk 00:26:10]} {[%emt 00:00:14]}
Rg8 {[%clk 00:00:50]} {[%emt 00:00:40]} 93. Ka7 {[%clk 00:26:33]} {[%emt
00:00:08]} Rg7 {[%clk 00:01:12]} {[%emt 00:00:07]} 94. Ka8 {[%clk 00:26:58]}
{[%emt 00:00:05]} 1-0

[Event "Masterklassen 2025"]
[Site "Uppsala, Sweden"]
[Date "2025.07.06"]
[Round "9.10"]
[White "Soppela, Toni"]
[Black "Malm, Simon"]
[Result "0-1"]
[TimeControl "90 min for 40 move + 30 min with an increment of 30 sec starting move 1"]
[WhiteFideId "1766163"]
[BlackFideId "1759825"]
[WhiteElo "2090"]
[BlackElo "2007"]

1. d4 {[%clk 01:29:56]} {[%emt 00:01:03]} d5 {[%clk 01:30:52]} {[%emt
00:00:09]} 2. c4 {[%clk 01:30:14]} {[%emt 00:00:11]} c6 {[%clk 01:30:48]}
{[%emt 00:00:34]} 3. Nf3 {[%clk 01:30:11]} {[%emt 00:00:33]} Nf6 {[%clk
01:29:40]} {[%emt 00:01:39]} 4. Nc3 {[%clk 01:30:05]} {[%emt 00:00:35]} e6
{[%clk 01:30:03]} {[%emt 00:00:07]} 5. e3 {[%clk 01:29:26]} {[%emt 00:01:09]}
Nbd7 {[%clk 01:30:25]} {[%emt 00:00:09]} 6. Qc2 {[%clk 01:29:09]} {[%emt
00:00:47]} Bd6 {[%clk 01:30:47]} {[%emt 00:00:07]} 7. b3 {[%clk 01:29:20]}
{[%emt 00:00:19]} O-O {[%clk 01:29:16]} {[%emt 00:02:00]} 8. Be2 {[%clk
01:29:44]} {[%emt 00:00:06]} b6 {[%clk 01:25:34]} {[%emt 00:04:13]} 9. O-O
{[%clk 01:29:39]} {[%emt 00:00:33]} Bb7 {[%clk 01:25:36]} {[%emt 00:00:30]} 10.
Bb2 {[%clk 01:25:59]} {[%emt 00:04:10]} Rc8 {[%clk 01:23:58]} {[%emt 00:02:09]}
11. Rad1 {[%clk 01:20:36]} {[%emt 00:05:51]} Qe7 {[%clk 01:22:13]} {[%emt
00:02:16]} 12. e4 {[%clk 01:18:36]} {[%emt 00:02:31]} dxe4 {[%clk 01:18:24]}
{[%emt 00:04:19]} 13. Nxe4 {[%clk 01:17:52]} {[%emt 00:01:13]} Nxe4 {[%clk
01:16:35]} {[%emt 00:02:19]} 14. Qxe4 {[%clk 01:18:19]} {[%emt 00:00:03]} f5
{[%clk 01:09:31]} {[%emt 00:07:34]} 15. Qd3 {[%clk 01:13:58]} {[%emt 00:04:50]}
Rcd8 {[%clk 01:03:50]} {[%emt 00:06:12]} 16. Rfe1 {[%clk 00:59:59]} {[%emt
00:14:29]} c5 {[%clk 00:53:11]} {[%emt 00:11:10]} 17. Bf1 {[%clk 00:57:03]}
{[%emt 00:03:25]} Be4 {[%clk 00:48:33]} {[%emt 00:05:09]} 18. Qe3 {[%clk
00:45:55]} {[%emt 00:11:36]} cxd4 {[%clk 00:39:57]} {[%emt 00:09:07]} 19. Bxd4
{[%clk 00:45:07]} {[%emt 00:01:18]} e5 {[%clk 00:39:59]} {[%emt 00:00:27]} 20.
Bc3 {[%clk 00:44:59]} {[%emt 00:00:38]} Bxf3 {[%clk 00:31:43]} {[%emt
00:08:47]} 21. Qxf3 {[%clk 00:43:03]} {[%emt 00:02:26]} e4 {[%clk 00:32:06]}
{[%emt 00:00:06]} 22. Qe3 {[%clk 00:37:09]} {[%emt 00:06:25]} Ne5 {[%clk
00:27:15]} {[%emt 00:05:21]} 23. h3 {[%clk 00:35:00]} {[%emt 00:02:39]} Bc5
{[%clk 00:23:14]} {[%emt 00:04:32]} 24. Bd4 {[%clk 00:27:35]} {[%emt 00:07:54]}
Rxd4 {[%clk 00:17:07]} {[%emt 00:06:37]} 0-1

[Event "Masterklassen 2025"]
[Site "Uppsala, Sweden"]
[Date "2025.07.06"]
[Round "9.11"]
[White "Jonsson, Jacob"]
[Black "Mardell, Jimmy"]
[Result "1/2-1/2"]
[TimeControl "90 min for 40 move + 30 min with an increment of 30 sec starting move 1"]
[WhiteFideId "1726315"]
[BlackFideId "1705610"]
[WhiteElo "2112"]
[BlackElo "2227"]

1. d4 {[%clk 01:30:58]} {[%emt 00:00:02]} d5 {[%clk 01:30:53]} {[%emt
00:00:07]} 2. c4 {[%clk 01:31:24]} {[%emt 00:00:04]} c6 {[%clk 01:31:15]}
{[%emt 00:00:09]} 3. Nf3 {[%clk 01:31:50]} {[%emt 00:00:04]} Nf6 {[%clk
01:31:40]} {[%emt 00:00:04]} 4. Nc3 {[%clk 01:32:16]} {[%emt 00:00:04]} dxc4
{[%clk 01:32:00]} {[%emt 00:00:11]} 5. a4 {[%clk 01:32:40]} {[%emt 00:00:06]}
Bf5 {[%clk 01:32:20]} {[%emt 00:00:09]} 6. e3 {[%clk 01:33:06]} {[%emt
00:00:05]} e6 {[%clk 01:32:36]} {[%emt 00:00:13]} 7. Bxc4 {[%clk 01:33:31]}
{[%emt 00:00:06]} Bb4 {[%clk 01:32:56]} {[%emt 00:00:10]} 8. O-O {[%clk
01:33:53]} {[%emt 00:00:06]} O-O {[%clk 01:33:22]} {[%emt 00:00:05]} 9. Qe2
{[%clk 01:34:18]} {[%emt 00:00:06]} Bg6 {[%clk 01:33:17]} {[%emt 00:00:34]} 10.
Ne5 {[%clk 01:33:38]} {[%emt 00:01:10]} Nbd7 {[%clk 01:33:17]} {[%emt
00:00:30]} 11. Nxg6 {[%clk 01:25:09]} {[%emt 00:08:59]} hxg6 {[%clk 01:33:18]}
{[%emt 00:00:30]} 12. Rd1 {[%clk 01:25:09]} {[%emt 00:00:29]} Qe7 {[%clk
01:27:23]} {[%emt 00:06:25]} 13. Bd2 {[%clk 01:21:09]} {[%emt 00:04:31]} Rfd8
{[%clk 01:20:35]} {[%emt 00:07:18]} 14. Bb3 {[%clk 01:18:10]} {[%emt 00:03:28]}
e5 {[%clk 01:09:37]} {[%emt 00:11:28]} 15. Be1 {[%clk 00:58:48]} {[%emt
00:19:51]} a5 {[%clk 00:52:02]} {[%emt 00:18:06]} 16. f3 {[%clk 00:50:42]}
{[%emt 00:08:36]} exd4 {[%clk 00:49:12]} {[%emt 00:03:20]} 17. exd4 {[%clk
00:51:03]} {[%emt 00:00:09]} Qxe2 {[%clk 00:48:57]} {[%emt 00:00:45]} 18. Nxe2
{[%clk 00:51:27]} {[%emt 00:00:06]} Bxe1 {[%clk 00:49:08]} {[%emt 00:00:19]} 19.
Rxe1 {[%clk 00:51:51]} {[%emt 00:00:07]} Nb6 {[%clk 00:49:10]} {[%emt
00:00:28]} 20. Kf2 {[%clk 00:43:37]} {[%emt 00:08:44]} Nfd5 {[%clk 00:44:56]}
{[%emt 00:04:44]} 21. Rad1 {[%clk 00:43:07]} {[%emt 00:00:59]} Rd7 {[%clk
00:41:02]} {[%emt 00:04:24]} 22. Ng3 {[%clk 00:41:24]} {[%emt 00:02:12]} f5
{[%clk 00:31:32]} {[%emt 00:10:00]} 23. Re5 {[%clk 00:39:17]} {[%emt 00:02:38]}
Kh7 {[%clk 00:31:00]} {[%emt 00:01:02]} 24. Ne2 {[%clk 00:37:51]} {[%emt
00:01:56]} Rad8 {[%clk 00:28:52]} {[%emt 00:02:39]} 25. f4 {[%clk 00:35:43]}
{[%emt 00:02:37]} Rd6 {[%clk 00:26:19]} {[%emt 00:03:04]} 26. Rd3 {[%clk
00:33:27]} {[%emt 00:02:45]} Kg8 {[%clk 00:20:06]} {[%emt 00:06:43]} 27. Re7
{[%clk 00:25:59]} {[%emt 00:07:58]} R6d7 {[%clk 00:18:59]} {[%emt 00:01:38]} 28.
Rxd7 {[%clk 00:26:15]} {[%emt 00:00:13]} Rxd7 {[%clk 00:19:26]} {[%emt
00:00:04]} 29. Rc3 {[%clk 00:26:36]} {[%emt 00:00:08]} Kf8 {[%clk 00:16:33]}
{[%emt 00:03:24]} 30. Rc5 {[%clk 00:26:59]} {[%emt 00:00:06]} Nb4 {[%clk
00:10:35]} {[%emt 00:06:28]} 31. Ke3 {[%clk 00:20:05]} {[%emt 00:07:24]} N6d5+
{[%clk 00:10:10]} {[%emt 00:00:55]} 32. Bxd5 {[%clk 00:17:19]} {[%emt
00:03:16]} Rxd5 {[%clk 00:09:23]} {[%emt 00:01:17]} 33. g3 {[%clk 00:13:59]}
{[%emt 00:03:50]} Ke7 {[%clk 00:07:52]} {[%emt 00:02:02]} 34. Nc1 {[%clk
00:13:07]} {[%emt 00:01:22]} b6 {[%clk 00:06:11]} {[%emt 00:02:11]} 35. Rc4
{[%clk 00:11:33]} {[%emt 00:02:03]} Rd6 {[%clk 00:03:55]} {[%emt 00:02:47]} 36.
Nd3 {[%clk 00:10:39]} {[%emt 00:01:23]} Nxd3 {[%clk 00:03:55]} {[%emt
00:00:30]} 37. Kxd3 {[%clk 00:11:01]} {[%emt 00:00:07]} Ke6 {[%clk 00:04:18]}
{[%emt 00:00:07]} 38. b4 {[%clk 00:10:00]} {[%emt 00:01:32]} axb4 {[%clk
00:02:17]} {[%emt 00:02:33]} 39. Rxb4 {[%clk 00:10:23]} {[%emt 00:00:05]} c5
{[%clk 00:02:36]} {[%emt 00:00:11]} 1/2-1/2

[Event "Masterklassen 2025"]
[Site "Uppsala, Sweden"]
[Date "2025.07.06"]
[Round "9.12"]
[White "Dingertz, Erik"]
[Black "Wakeham, Daniel"]
[Result "1/2-1/2"]
[TimeControl "90 min for 40 move + 30 min with an increment of 30 sec starting move 1"]
[WhiteFideId "1741578"]
[BlackFideId "1705482"]
[WhiteElo "2121"]
[BlackElo "2045"]

1. d4 {[%clk 01:30:56]} {[%emt 00:00:04]} Nf6 {[%clk 01:30:37]} {[%emt
00:00:23]} 2. Nf3 {[%clk 01:31:14]} {[%emt 00:00:13]} e6 {[%clk 01:30:57]}
{[%emt 00:00:09]} 3. g3 {[%clk 01:31:32]} {[%emt 00:00:13]} b6 {[%clk
01:31:06]} {[%emt 00:00:21]} 4. Bg2 {[%clk 01:31:54]} {[%emt 00:00:07]} Bb7
{[%clk 01:31:25]} {[%emt 00:00:12]} 5. O-O {[%clk 01:32:17]} {[%emt 00:00:07]}
Be7 {[%clk 01:31:21]} {[%emt 00:00:33]} 6. c4 {[%clk 01:32:43]} {[%emt
00:00:05]} O-O {[%clk 01:31:34]} {[%emt 00:00:17]} 7. Nc3 {[%clk 01:33:07]}
{[%emt 00:00:06]} Ne4 {[%clk 01:31:17]} {[%emt 00:00:46]} 8. Qc2 {[%clk
01:32:21]} {[%emt 00:01:16]} Nxc3 {[%clk 01:30:58]} {[%emt 00:00:50]} 9. Qxc3
{[%clk 01:32:20]} {[%emt 00:00:31]} d6 {[%clk 01:30:33]} {[%emt 00:00:54]} 10.
Rd1 {[%clk 01:29:59]} {[%emt 00:02:52]} f5 {[%clk 01:22:50]} {[%emt 00:08:13]}
11. b4 {[%clk 01:22:27]} {[%emt 00:08:02]} a5 {[%clk 01:20:12]} {[%emt
00:03:08]} 12. a3 {[%clk 01:22:42]} {[%emt 00:00:14]} Bf6 {[%clk 01:17:05]}
{[%emt 00:03:37]} 13. Bb2 {[%clk 01:21:14]} {[%emt 00:01:59]} Qe8 {[%clk
01:13:15]} {[%emt 00:04:19]} 14. c5 {[%clk 01:16:39]} {[%emt 00:05:05]} axb4
{[%clk 00:59:39]} {[%emt 00:14:06]} 15. axb4 {[%clk 01:17:02]} {[%emt
00:00:07]} Rxa1 {[%clk 00:59:06]} {[%emt 00:01:04]} 16. Rxa1 {[%clk 01:15:53]}
{[%emt 00:01:39]} dxc5 {[%clk 00:51:14]} {[%emt 00:08:22]} 17. bxc5 {[%clk
01:15:22]} {[%emt 00:01:00]} b5 {[%clk 00:51:12]} {[%emt 00:00:33]} 18. Ra7
{[%clk 01:12:10]} {[%emt 00:03:41]} Qc8 {[%clk 00:51:22]} {[%emt 00:00:21]} 19.
Qb3 {[%clk 01:08:05]} {[%emt 00:04:34]} Bd5 {[%clk 00:38:54]} {[%emt 00:12:59]}
20. Qxb5 {[%clk 01:08:06]} {[%emt 00:00:29]} Nc6 {[%clk 00:39:00]} {[%emt
00:00:23]} 21. Ra1 {[%clk 00:54:14]} {[%emt 00:14:22]} Qd7 {[%clk 00:36:52]}
{[%emt 00:02:39]} 22. Qa4 {[%clk 00:51:34]} {[%emt 00:03:10]} Rb8 {[%clk
00:34:51]} {[%emt 00:02:30]} 23. Bc3 {[%clk 00:48:55]} {[%emt 00:03:09]} Rb3
{[%clk 00:34:14]} {[%emt 00:01:07]} 24. Bd2 {[%clk 00:47:46]} {[%emt 00:01:39]}
Rb2 {[%clk 00:29:01]} {[%emt 00:05:44]} 25. e3 {[%clk 00:38:04]} {[%emt
00:10:12]} g5 {[%clk 00:26:41]} {[%emt 00:02:49]} 26. Bc3 {[%clk 00:35:59]}
{[%emt 00:02:35]} Rb3 {[%clk 00:26:49]} {[%emt 00:00:23]} 27. Be1 {[%clk
00:25:46]} {[%emt 00:10:42]} Rb7 {[%clk 00:19:13]} {[%emt 00:08:07]} 28. Qd1
{[%clk 00:13:00]} {[%emt 00:13:16]} g4 {[%clk 00:15:37]} {[%emt 00:04:06]} 29.
Ne5 {[%clk 00:04:43]} {[%emt 00:08:47]} Nxe5 {[%clk 00:08:01]} {[%emt
00:08:06]} 30. dxe5 {[%clk 00:05:08]} {[%emt 00:00:05]} Bxe5 {[%clk 00:08:23]}
{[%emt 00:00:07]} 31. e4 {[%clk 00:04:00]} {[%emt 00:01:39]} Bc6 {[%clk
00:08:48]} {[%emt 00:00:04]} 32. Qxd7 {[%clk 00:04:00]} {[%emt 00:00:31]} Bxd7
{[%clk 00:09:17]} {[%emt 00:00:02]} 33. Rd1 {[%clk 00:04:19]} {[%emt 00:00:10]}
c6 {[%clk 00:05:31]} {[%emt 00:04:15]} 34. exf5 {[%clk 00:04:25]} {[%emt
00:00:25]} exf5 {[%clk 00:06:00]} {[%emt 00:00:01]} 35. Ba5 {[%clk 00:02:58]}
{[%emt 00:01:57]} Ra7 {[%clk 00:05:33]} {[%emt 00:00:57]} 36. Bb6 {[%clk
00:03:03]} {[%emt 00:00:24]} Ra8 {[%clk 01:30:30]} {[%emt 00:00:11]} 1/2-1/2